Cogmind - Beta 15 @@@ ROGUE MODE // 2025.06.10 @ 13:13:16 Player: puppuppit Result: Destroyed by P-70 Sage via exploding Nuclear Reactor Performance ------------- Evolutions (5) 2500 Regions Visited (8) 1600 Robots Destroyed (159) 795 Value Destroyed (5667) 5667 Prototype IDs (5) 100 Alien Tech Used (0) 0 Bonus (5277) 5277 TOTAL SCORE: 15939 Bonus ------- Triggered High Security 1000 High Alert Combat Kills 2617 Follower Combat Kills 1000 Registered with UFD 300 Met Optimus in HQ 500 Friendly Fire -140 Cogmind --------- Core Integrity 0/1000 Matter 261/300 Energy 82/100 System Corruption 36% Temperature Cool (0) Movement Hovering (70) Location -5/Factory Parts ------- > --- POWER (1) -------- (None) > --- PROPULSION (5) --- Gyrokinetic Inverter > --- UTILITY (7) ------ Medium Storage Unit Core Analyzer > --- WEAPON (4) ------- (None) > --- INVENTORY (10) --- Advanced Cooling System Improved Matter Compressor (300) Core Analyzer Advanced System Shield KE Penetrator Overtuned Railgun Heavy Missile Launcher Improved Remote Datajack Peak State ------------ > --- POWER ------------ Light Antimatter Reactor > --- PROPULSION ------- Improved Gravmag System Antigrav System Antigrav System Antigrav System Gyrokinetic Inverter > --- UTILITY ---------- Scrap Suit Medium Storage Unit Improved Matter Compressor Core Analyzer Advanced Hacking Suite Improved System Shield > --- WEAPON ----------- KE Penetrator Overtuned Coil Gun Improved KE Penetrator Overtuned Railgun > --- INVENTORY -------- Gyrokinetic Inverter Gyrokinetic Inverter Gyrokinetic Inverter Advanced Heat Sink Compact Matter Pod Core Analyzer KE Penetrator Heavy Missile Launcher Improved Remote Datajack Botcube [Rating: 99] Favorites ----------- Power Ion Engine Engine Ion Engine Power Core Fission Core Reactor Light Antimatter Reactor Propulsion Light Treads Treads Light Treads Leg Carbon-fiber Leg Wheel Wheel Hover Unit Gyrokinetic Inverter Utility Large Storage Unit Device Improved Terrain Scanner Storage Large Storage Unit Processor Core Analyzer Hackware Makeshift Hacking Suite Weapon Assault Rifle Ballistic Gun Assault Rifle Ballistic Cannon Improved Light Cannon Launcher Grenade Launcher Build | -11 -10 -10 -10 -7 -7 -5 -5 -5 ------- Run | Yrd Mat Min Sub Rec Scr Fac Was Fac Slots Evolved 10 | . . . . . . 10 . . Power . | . . . . . . . . . Propulsion 3 | . . . . . . 3 . . Utility 5 | . . . . . . 5 . . Weapon 2 | . . . . . . 2 . . Parts Attached 87 | 7 7 3 7 3 10 41 1 8 Power 11 | 1 . 1 2 . 2 3 . 2 Engine 9 | 1 . 1 2 . 1 2 . 2 Core 1 | . . . . . 1 . . . Reactor 1 | . . . . . . 1 . . Propulsion 28 | 2 1 . 2 2 3 15 . 3 Treads 5 | 2 1 . 2 . . . . . Leg 7 | . . . . . 1 6 . . Wheel 2 | . . . . 2 . . . . Hover 14 | . . . . . 2 9 . 3 Flight . | . . . . . . . . . Utility 30 | 2 4 1 . 1 3 19 . . Device 11 | 1 . 1 . . 1 8 . . Storage 6 | 1 3 . . . 1 1 . . Processor 8 | . 1 . . 1 . 6 . . Hackware 5 | . . . . . 1 4 . . Protection . | . . . . . . . . . Artifact . | . . . . . . . . . Weapon 18 | 2 2 1 3 . 2 4 1 3 Energy Gun . | . . . . . . . . . Energy Cannon . | . . . . . . . . . Ballistic Gun 14 | 2 1 1 2 . 1 4 . 3 Ballistic Cannon 1 | . . . . . 1 . . . Launcher 3 | . 1 . 1 . . . 1 . Special Weapon . | . . . . . . . . . Impact Weapon . | . . . . . . . . . Slashing Weapon . | . . . . . . . . . Piercing Weapon . | . . . . . . . . . Special Melee Weapon . | . . . . . . . . . Unidentified Prototypes 2 | . . . . . . 2 . . Parts Lost 29 | . . 2 8 . . 4 . 15 Power 5 | . . . 2 . . 1 . 2 Propulsion 12 | . . 1 3 . . 2 . 6 Utility 5 | . . . . . . 1 . 4 Weapon 7 | . . 1 3 . . . . 3 Highest Loss Streak 7 | . . 1 3 . . 2 . 7 To Critical Strikes 1 | . . . 1 . . . . . Average Backups 10 | . 6 12 14 12 11 9 8 7 Power . | . . . . . . . . . Propulsion 2 | . 1 3 4 2 . 2 1 . Utility 4 | . 3 4 4 6 7 4 4 3 Weapon 3 | . 2 5 5 3 3 1 1 2 Tool/Special . | . . . . . . . . . Unused Backups 52 | . . 1 1 . 21 21 1 7 Power 2 | . . . . . 1 1 . . Propulsion 15 | . . . 1 . 5 7 1 1 Utility 25 | . . 1 . . 10 10 . 4 Weapon 9 | . . . . . 5 3 . 1 Tool/Special 1 | . . . . . . . . 1 Average Slot Usage (%) 92 | . 100 99 97 99 87 86 94 76 Engine 7 | . 14 14 11 14 3 3 . 3 Core 1 | . . . . . 8 . . . Treads 12 | . 28 27 27 . . . . . Leg 1 | . . . . . . 6 . . Wheel 6 | . . . . 26 22 . . . Hover 7 | . . . . . 5 19 29 20 Device 8 | . 10 13 14 2 . 7 11 10 Storage 11 | . 14 14 14 14 14 5 5 5 Processor 3 | . 3 . . 11 2 7 5 5 Hackware 3 | . . . . . 2 8 11 10 Ballistic Gun 22 | . 27 27 26 28 17 18 21 15 Ballistic Cannon 2 | . . . . . 10 2 . . Peak Build Rating 99 | 9 10 11 13 14 26 99 98 98 Average Rating 30 | 6 8 10 11 12 18 73 97 76 On Entrance 29 | . 9 8 11 11 13 25 97 95 Naked Turns . | . . . . . . . . . Heaviest Build 54 | 14 30 30 31 28 40 54 54 50 Greatest Support 80 | 40 40 40 40 20 20 80 54 54 Greatest Overweight (x) 2 | . . . 1 1 2 1 . 1 Average Overweight (x) . | . . . . 1 1 . . . Largest Inventory Capacity 15 | 8 15 15 15 15 15 10 10 10 Average Capacity 13 | 7 13 15 15 15 14 10 10 10 Most Carried 15 | 2 12 15 15 15 15 10 10 10 Average Carried 10 | . 6 12 14 12 12 9 9 9 Final Capacity 15 | 8 15 15 15 15 10 10 10 10 Final Carried 15 | 2 12 15 12 14 10 8 10 8 Class Distribution -------------------- 62% | Mutant 15% | Hacker-Gunner 12% | Scavenger-Mutant 6% | Scavenger-Gunner Dominant Class ---------------- Mutant | -10/Materials Mutant | -10/Mines Mutant | -10/Subcaves Scavenger-Mutant | -7/Recycling Mutant | -7/Scraptown Hacker-Gunner | -5/Factory Hacker-Gunner | -5/Waste Hacker-Gunner | -5/Factory Resources | -11 -10 -10 -10 -7 -7 -5 -5 -5 ----------- Run | Yrd Mat Min Sub Rec Scr Fac Was Fac Matter Collected 6469 | 349 569 343 379 98 344 2700 704 983 Remotely . | . . . . . . . . . Salvage Created 8813 | 128 768 410 256 . . 3862 1638 1751 Parts 397 | 15 46 33 15 . . 166 33 89 Haulers Intercepted 7 | . 2 . . . . 3 . 2 Recyclers Shooed 4 | . 2 . . . . 2 . . Parts Field Recycled . | . . . . . . . . . Retrieved Matter . | . . . . . . . . . Parts Self-Destructed 13 | . . . 13 . . . . . Prevented . | . . . . . . . . . Kills | -11 -10 -10 -10 -7 -7 -5 -5 -5 ------- Run | Yrd Mat Min Sub Rec Scr Fac Was Fac Combat Hostiles Destroyed 100 | . 12 7 9 . . 41 6 25 Guns 71 | . 9 . 5 . . 33 6 18 AOE 29 | . 3 7 4 . . 8 . 7 Classes Destroyed 16 | 3 6 . 1 . . 5 1 . Worker 18 | 2 3 5 . . . 5 . 3 Builder 5 | . 1 . . . . 4 . . Tunneler 8 | 2 . 3 . . . 3 . . Hauler 7 | . 2 . . . . 3 . 2 Recycler 10 | 1 2 2 . . . 4 . 1 Mechanic 1 | . . . . . . 1 . . Operator 2 | . 1 . . . . 1 . . Watcher 7 | . 2 . . . . 3 . 2 Swarmer 16 | . 6 5 1 . . . . 4 Grunt 51 | . 6 2 . . . 30 . 13 Brawler 3 | . . . . . . 2 . 1 Sentry 7 | . . . . . . 4 . 3 Hunter 3 | . . . . . . 1 . 2 Programmer 6 | . . . . . . 4 . 2 Compactor 6 | . . . . . . . 6 . Subdweller 8 | . . . 8 . . . . . Thug 1 | . . 1 . . . . . . Best Kill Streak 11 | 2 5 4 3 . . 11 2 5 Combat Bots Only 9 | . 4 3 3 . . 9 2 4 Max Kills in Single Turn 4 | 1 3 4 2 . . 3 1 3 Gunslinging 1 | . . . . . . . . 1 Exploded 3 | . 3 3 2 . . 3 . 3 Melee . | . . . . . . . . . Uniques/NPCs Destroyed . | . . . . . . . . . Combat | -11 -10 -10 -10 -7 -7 -5 -5 -5 -------- Run | Yrd Mat Min Sub Rec Scr Fac Was Fac Hostile Shots Fired 440 | . 62 17 65 . . 85 . 211 Missed 148 | . 23 5 22 . . 25 . 73 Hits 292 | . 39 12 43 . . 60 . 138 Melee 3 | . . . . . . 1 . 2 Projectile 289 | . 39 12 43 . . 59 . 136 AOE 3 | . . . . . . . . 3 Critical Strikes 10 | . . . 1 . . 4 . 5 Part Disruptions 2 | . . . . . . . . 2 Damage Taken 5275 | . 426 177 772 . . 1167 . 2733 Core 1267 | . 56 20 155 . . 143 . 893 Absorbed by Shields . | . . . . . . . . . Regen/Repaired (Parts) 247 | . . . . . . 145 . 102 Core Remaining (%) 53 | 100 . . . . 7 . . . Volleys Fired 381 | 17 73 24 40 . . 119 43 65 Largest 4 | 2 2 2 2 . . 4 4 4 Hottest 139 | 40 50 50 53 . . 139 138 139 Shots Fired 1054 | 34 146 45 65 . . 440 143 181 Gun 952 | 34 145 38 43 . . 377 136 179 Cannon 60 | . . . . . . 60 . . Launcher 42 | . 1 7 22 . . 3 7 2 Special . | . . . . . . . . . Kinetic 1012 | 34 145 38 43 . . 437 136 179 Thermal . | . . . . . . . . . Explosive 42 | . 1 7 22 . . 3 7 2 Electromagnetic . | . . . . . . . . . Robot Hit Streak 21 | 5 21 12 19 . . 9 7 10 Robot Miss Streak 8 | 3 5 2 4 . . 5 7 8 Penetration Max 3 | . . . . . . 3 1 2 Secondary Targets 10 | . 2 . . . . 2 2 4 Max Gunslinging Chain 2 | . 1 . . . . 1 1 2 Shots Hit Robots 559 | 21 94 28 41 . . 211 79 85 Core Hits 305 | 8 42 22 18 . . 138 19 58 Critical Kills 31 | . . . . . . 25 1 5 Critical Parts Destroyed 25 | . . . . . . 21 . 4 Critical Strikes 67 | . . . . . . 47 11 9 Destroy 67 | . . . . . . 47 11 9 Melee Attacks . | . . . . . . . . . Impact . | . . . . . . . . . Slashing . | . . . . . . . . . Piercing . | . . . . . . . . . Sneak Attacks . | . . . . . . . . . Combat Hostiles . | . . . . . . . . . Follow-up Attacks . | . . . . . . . . . Damage Inflicted 17020 | 206 1189 900 1165 . . 6986 2697 3877 Guns 12723 | 206 1045 310 432 . . 5305 2697 2728 Cannons 520 | . . . . . . 520 . . Explosions 3759 | . 144 590 725 . . 1161 . 1139 Melee . | . . . . . . . . . Ramming 18 | . . . 8 . . . . 10 Kinetic 13243 | 206 1045 310 432 . . 5825 2697 2728 Thermal 804 | . . . . . . 63 . 741 Explosive 2858 | . 144 590 725 . . 1001 . 398 Electromagnetic 97 | . . . . . . 97 . . Impact . | . . . . . . . . . Slashing . | . . . . . . . . . Piercing . | . . . . . . . . . Highest Corruption 36 | . 2 2 2 2 . 1 23 36 Average Corruption 6 | . 1 2 2 2 . 1 16 26 Corruption Purged 1 | . . . . . . 1 . . Corruption Blocked . | . . . . . . . . . Effects 118 | . 7 15 18 2 . 4 20 52 Message Errors 24 | . 1 2 6 1 . 1 3 10 Matter Fused 20 | . 3 2 4 . . 1 2 8 Heat Flow Errors 10 | . 1 2 2 . . . 4 1 Energy Discharges 11 | . 1 2 2 1 . . 1 4 Parts Fused 2 | . . 2 . . . . . . Data Loss (minor) 15 | . 1 1 2 . . 1 2 8 Data Loss (major) 1 | . . 1 . . . . . . Misfires 4 | . . 2 . . . . 1 1 Alerts 5 | . . 1 2 . . 1 . 1 Misdirections 7 | . . . . . . . 1 6 Weapon Failures 19 | . . . . . . . 6 13 Overload Shots . | . . . . . . . . . Overflow Damage 153 | . 3 . . . . 99 . 51 Projectiles . | . . . . . . . . . Explosions 153 | . 3 . . . . 99 . 51 Melee . | . . . . . . . . . Knockbacks 8 | . . . . . . 8 . . Impact . | . . . . . . . . . Kinetic 8 | . . . . . . 8 . . Secondary . | . . . . . . . . . Self-Inflicted Damage 101 | . . 33 . . . . . 68 Shots 3 | . . 2 . . . . . 1 Rammed 6 | . . . 3 . . . . 3 Targets Rammed 6 | . . . 3 . . . . 3 Kicked . | . . . . . . . . . Crushed . | . . . . . . . . . Highest Temperature 371 | . 278 262 212 . . 371 285 216 Average Temperature 83 | . 77 95 93 . . 86 88 47 Received Heat Transfer 1069 | . 162 66 114 . . 460 . 267 Effects 7 | . . . . . . 7 . . Shutdowns 1 | . . . . . . 1 . . Interference 6 | . . . . . . 6 . . Siege Activations . | . . . . . . . . . Martial Activations . | . . . . . . . . . Shielding Activations . | . . . . . . . . . Robots Disrupted . | . . . . . . . . . Combat Hostiles . | . . . . . . . . . Robots Corrupted 1 | . . . . . . 1 . . Combat Hostiles . | . . . . . . . . . Parts Fried 5 | . . . . . . 5 . . Impact Corruptions . | . . . . . . . . . Robots Melted . | . . . . . . . . . Combat Hostiles . | . . . . . . . . . Parts Melted . | . . . . . . . . . Heat Transferred 500 | . . . . . . 50 . 450 Parts Sabotaged 3 | . . . . . . . . 3 Parts Stolen . | . . . . . . . . . Parts Stripped . | . . . . . . . . . Power Chain Reactions 1 | . . . . . . 1 . . Alert | -11 -10 -10 -10 -7 -7 -5 -5 -5 ------- Run | Yrd Mat Min Sub Rec Scr Fac Was Fac Maximum Alert Level 5 | . 1 . . . . 5 4 5 Low Security (%) 53 | 100 84 100 . 100 . 12 . . Level 1 5 | . 15 . . . . 5 . . Level 2 5 | . . . . . . 17 . . Level 3 10 | . . . . . . 10 77 23 Level 4 12 | . . . . . . 17 22 50 Level 5 10 | . . . . . . 32 . 6 High Security 3 | . . . . . . 2 . 19 Max Security . | . . . . . . . . . Peak Influence 2551 | 10 221 129 . 69 . 2551 1198 2343 Initial 1100 | . . 69 . 9 . . 1100 831 Average 612 | 1 67 26 . 31 . 1193 1087 1446 Influence Increases 6326 | 25 417 244 35 120 . 3393 238 1854 Destroy 0b10 Robot/C 2300 | . 240 140 20 . . 1240 . 660 Destroy 0b10 Robot/NC 340 | 25 55 50 . . . 145 . 65 Destroy Leader 456 | . 58 30 . . . 218 . 150 Allied During Kill 327 | . . . . . . 212 . 115 Successful Hack 70 | . 26 . . . . 42 . 2 Select Force Hacks 120 | . . . . 120 . . . . Disable Machine 855 | . 15 . . . . 450 . 390 Anti-Garrison Action 150 | . . . . . . 150 . . Destroy Structure 1288 | . 8 24 . . . 666 238 352 Partial Spotted 60 | . . . . . . 45 . 15 Lose Combat Pursuer 360 | . 15 . 15 . . 225 . 105 Influence Decreases 4389 | 25 239 422 16 130 9 980 1719 849 Entered New Map 2054 | . . 109 . 10 9 . 1569 357 Time Decay 1595 | 25 239 293 6 120 . 500 150 262 Lost Part 220 | . . 20 10 . . 40 . 150 Lost Ally 220 | . . . . . . 140 . 80 Purge Threat 300 | . . . . . . 300 . . Squads Dispatched 40 | . 1 . . . . 23 . 16 Investigation 13 | . . . . . . 9 . 4 Extermination 3 | . . . . . . 2 . 1 Reinforcement 11 | . 1 . . . . 8 . 2 Assault 9 | . . . . . . 4 . 5 Garrison 4 | . . . . . . . . 4 Intercept . | . . . . . . . . . Searches Triggered . | . . . . . . . . . Construction Impeded 3 | . . . . . . 3 . . Haulers Reinforced 3 | . . . . . . 2 . 1 Active Scanning Responses . | . . . . . . . . . Cargo Convoy Interrupts 1 | . . . . . . . . 1 Stealth | -11 -10 -10 -10 -7 -7 -5 -5 -5 --------- Run | Yrd Mat Min Sub Rec Scr Fac Was Fac Distress Signals 6 | . 1 . . . . 2 . 3 Communications Jammed . | . . . . . . . . . Distress Signals . | . . . . . . . . . Times Spotted 191 | . 24 8 14 . . 93 6 46 Peak Tracking Total 11 | . 5 3 6 . . 8 3 11 Tactical Retreats 12 | . 1 . 1 . . 7 . 3 Traps | -11 -10 -10 -10 -7 -7 -5 -5 -5 ------- Run | Yrd Mat Min Sub Rec Scr Fac Was Fac Traps Triggered 5 | . 2 . . . . 2 . 1 Indirectly . | . . . . . . . . . Trap Hack Attempts . | . . . . . . . . . Triggered . | . . . . . . . . . Disarmed . | . . . . . . . . . Reprogrammed . | . . . . . . . . . Reused . | . . . . . . . . . Traps Extracted . | . . . . . . . . . Installed . | . . . . . . . . . Triggered . | . . . . . . . . . Machines | -11 -10 -10 -10 -7 -7 -5 -5 -5 ---------- Run | Yrd Mat Min Sub Rec Scr Fac Was Fac Machines Disabled 58 | . 1 . . . . 31 . 26 Max in Single Turn 6 | . 1 . . . . 4 . 6 Garrison Access 1 | . . . . . . 1 . . Machines Repaired . | . . . . . . . . . Machines Dismantled . | . . . . . . . . . Machines Sabotaged . | . . . . . . . . . Overloaded Fab Kills . | . . . . . . . . . Hacking | -11 -10 -10 -10 -7 -7 -5 -5 -5 --------- Run | Yrd Mat Min Sub Rec Scr Fac Was Fac Machines Accessed 40 | . 7 . . 7 1 18 . 7 Terminals 15 | . 6 . . 2 . 7 . . Fabricators 2 | . . . . . . 1 . 1 Repair Stations 3 | . . . . . . 2 . 1 Recycling Units 16 | . 1 . . 5 . 6 . 4 Scanalyzers 2 | . . . . . . 1 . 1 Garrison Access 1 | . . . . . . 1 . . Total Hacks 113 | . 18 . . 17 4 56 . 18 Successful 56 | . 10 . . 6 4 24 . 12 Failed 56 | . 7 . . 11 . 32 . 6 Catastrophic 8 | . 1 . . 2 . 4 . 1 Database Lockouts 1 | . 1 . . . . . . . Manual 48 | . 12 . . 6 . 26 . 4 Terminals 54 | . 17 . . 6 . 31 . . Fabricators 3 | . . . . . . 1 . 2 Repair Stations 12 | . . . . . . 6 . 6 Recycling Units 30 | . 1 . . 11 . 13 . 5 Scanalyzers 8 | . . . . . . 3 . 5 Garrison Access 2 | . . . . . . 2 . . Terminal Hacks 16 | . 4 . . . 4 8 . . Record 4 | . . . . . 4 . . . Robot Analysis 2 | . 2 . . . . . . . Prototype ID Bank 2 | . 2 . . . . . . . Branch Access Points 1 | . . . . . . 1 . . Terminal Index 1 | . . . . . . 1 . . Alert Level 1 | . . . . . . 1 . . Unreport Threat 2 | . . . . . . 2 . . Recall Investigation 1 | . . . . . . 1 . . Recall Reinforcements 2 | . . . . . . 2 . . Fabricator Hacks 2 | . . . . . . 1 . 1 Network Status 2 | . . . . . . 1 . 1 Repair Station Hacks 5 | . . . . . . 2 . 3 Scan Component 4 | . . . . . . 2 . 2 Repair 1 | . . . . . . . . 1 Recycling Unit Hacks 5 | . 1 . . 2 . 2 . . Report Inventory 2 | . . . . 1 . 1 . . Retrieve Components 3 | . 1 . . 1 . 1 . . Scanalyzer 6 | . . . . . . 1 . 5 Insert Component 3 | . . . . . . 1 . 2 Analyze 3 | . . . . . . . . 3 Garrison Access Hacks . | . . . . . . . . . Unauthorized Hacks 22 | . 5 . . 4 . 10 . 3 Terminals 10 | . 5 . . . . 5 . . Assimilate 1 | . . . . . . 1 . . Botnet 9 | . 5 . . . . 4 . . Fabricators . | . . . . . . . . . Repair Stations . | . . . . . . . . . Recycling Units 12 | . . . . 4 . 5 . 3 Tunnel 4 | . . . . 4 . . . . Fedlink 6 | . . . . . . 4 . 2 Scrapoids 2 | . . . . . . 1 . 1 Scanalyzers . | . . . . . . . . . Garrison Access . | . . . . . . . . . Data Cores Recovered 1 | . . . . . . 1 . . Used . | . . . . . . . . . Hacking Detections 28 | . 6 . . 4 . 15 . 3 Full Trace Events 8 | . 1 . . 2 . 4 . 1 Feedback Events . | . . . . . . . . . Feedback Blocked 2 | . . . . . . 2 . . Robot Schematics Acquired . | . . . . . . . . . Robots Built . | . . . . . . . . . Authchips . | . . . . . . . . . Time . | . . . . . . . . . Total Robot Build Rating . | . . . . . . . . . Part Schematics Acquired 1 | . . . . . . . . 1 Parts Built . | . . . . . . . . . Authchips . | . . . . . . . . . Time . | . . . . . . . . . Total Part Build Rating . | . . . . . . . . . Parts Repaired 1 | . . . . . . . . 1 Time 78 | . . . . . . . . 78 Parts Recycled . | . . . . . . . . . Recycled Matter . | . . . . . . . . . Retrieved Matter . | . . . . . . . . . Retrieved Components 7 | . 5 . . 1 . 1 . . Parts Scanalyzed 2 | . . . . . . 1 . 1 Part Schematics Acquired 1 | . . . . . . . . 1 Parts Damaged . | . . . . . . . . . Bothacking | -11 -10 -10 -10 -7 -7 -5 -5 -5 ------------ Run | Yrd Mat Min Sub Rec Scr Fac Was Fac Used RIF Installer . | . . . . . . . . . Robots Hacked . | . . . . . . . . . Non-combat . | . . . . . . . . . Combat . | . . . . . . . . . Robot Hacks Applied . | . . . . . . . . . Relay Couplers Released . | . . . . . . . . . Fabnet Peak Effective % . | . . . . . . . . . Robots Rewired . | . . . . . . . . . Allies Hacked 1 | . . . . . . 1 . . Hacks Repelled . | . . . . . . . . . Allies | -11 -10 -10 -10 -7 -7 -5 -5 -5 -------- Run | Yrd Mat Min Sub Rec Scr Fac Was Fac Total Allies 13 | . . . . . 1 6 . 6 Largest Group 6 | . . . . . 1 6 . 5 Highest-Rated Group 308 | . . . . . 69 308 . 235 Highest-Rated Ally 86 | . . . . . 69 69 . 86 Total Orders 6 | . . . . . 1 4 1 . STAY 2 | . . . . . 1 1 . . FOLLOW 1 | . . . . . . 1 . . EXPLORE 3 | . . . . . . 2 1 . Ally Attacks 201 | . . . . . . 143 . 58 Total Damage 5454 | . . . . . . 3334 . 2120 Kills 41 | . . . . . . 26 . 15 Allies Corrupted 1 | . . . . . . 1 . . Allies Melted . | . . . . . . . . . Intel | -11 -10 -10 -10 -7 -7 -5 -5 -5 ------- Run | Yrd Mat Min Sub Rec Scr Fac Was Fac Active Infowar (turns) 4660 | 68 937 1241 1638 246 386 144 . . Terrain 3926 | 68 937 1241 1638 42 . . . . Machine Analysis 734 | . . . . 204 386 144 . . Robot Analysis Total 2 | . 2 . . . . . . . Derelict Logs Recovered 4 | . . 2 . . 2 . . . Drone Launches 3 | . . . . . . 2 1 . Drone Recoveries 1 | . . . . . . 1 . . Exploration | -11 -10 -10 -10 -7 -7 -5 -5 -5 ------------- Run | Yrd Mat Min Sub Rec Scr Fac Was Fac Turns Passed 9237 | 141 1215 1248 1638 246 2209 1534 308 698 Spaces Moved 7088 | 52 611 725 643 247 2122 1599 362 727 Core 1 | 1 . . . . . . . . Treads 2031 | 51 611 725 643 1 . . . . Legs 199 | . . . . . . 199 . . Wheels 2055 | . . . . 246 1809 . . . Hover 2802 | . . . . . 313 1400 362 727 Flight . | . . . . . . . . . Fastest Speed 44 | 50 160 160 160 95 95 44 50 50 Average Speed 102 | 157 160 160 160 95 99 64 50 65 Slowest Speed 240 | 160 160 160 240 240 185 190 50 101 Overloaded Moves . | . . . . . . . . . Propulsion Burnouts . | . . . . . . . . . Robots Hopped . | . . . . . . . . . Potential Cave-ins 2 | . . . 2 . . . . . Cave-ins Triggered . | . . . . . . . . . Exploration Rate (%) 57 | 5 83 96 31 50 84 50 99 22 Regions Visited 8 Branch Regions 4 Pre-discovered Areas 7 | . . 1 . 4 1 1 . . Known Exits Taken . | . . . . . . . . . Unknown Exits Taken 6 | 1 1 1 1 1 1 . . . Scrap Searched 12 | . . 1 . . 11 . . . Spaces Dug 91 | . . . 42 . . 1 42 6 Terrain Destroyed 876 | . 6 30 169 . . 317 201 153 Melee . | . . . . . . . . . Projectile 252 | . . . . . . 138 55 59 AOE 622 | . 6 30 169 . . 177 146 94 Terrain Rammed . | . . . . . . . . . Walls Destroyed . | . . . . . . . . . Machines Disabled . | . . . . . . . . . Actions | -11 -10 -10 -10 -7 -7 -5 -5 -5 --------- Run | Yrd Mat Min Sub Rec Scr Fac Was Fac Total 8428 | 77 708 768 1180 257 2244 1908 425 861 Wait 621 | . 5 . 468 . 45 67 13 23 Move 7082 | 51 610 724 643 246 2121 1599 361 727 Hop . | . . . . . . . . . Pick Up 93 | 2 10 7 4 5 27 31 3 4 Fast Attach 25 | 7 . . 2 . 4 8 . 4 Attach 29 | . . 2 5 1 1 10 . 10 Detach 18 | . . . . . 2 5 . 11 Swap 86 | . 8 8 14 2 8 38 3 5 Drop 84 | . 2 3 2 3 34 30 2 8 Fire 381 | 17 73 24 40 . . 119 43 65 Melee . | . . . . . . . . . Ram 4 | . . . . . . . . 4 Kick . | . . . . . . . . . Crush 2 | . . . 2 . . . . . Escape Stasis . | . . . . . . . . . Rewire 3 | . . . . . 2 1 . . Trap . | . . . . . . . . . Miscellaneous . | . . . . . . . . . Route ------- -11/Scrapyard -10/Materials (discovered 5 exits: [*Mat x3] / [*Min] / [*Sub]) -10/Mines (discovered 3 exits: [*Mat x2] / [*Sub]) -10/Subcaves (discovered 2 exits: [*Mat] / *Rec) -7/Recycling -7/Scraptown (discovered 2 exits: *Fac x2) -5/Factory (discovered 4 exits: *Fac x2 / *Upp x2) -5/Waste -5/Factory History --------- Turn | Location | Event 27 | -11/Scrapyard | Discovered new exit (range 15) 142 | -11/Scrapyard | Entered Materials 317 | -10/Materials | Build established: Mutant 678 | -10/Materials | Discovered new exit (range 11) 681 | -10/Materials | Discovered new exit (range 11) 766 | -10/Materials | Discovered new exit (range 13) 1054 | -10/Materials | Discovered new exit (range 4) 1262 | -10/Materials | Central database locked down 1330 | -10/Materials | Discovered new exit (range 8) 1357 | -10/Materials | Entered Mines 1467 | -10/Mines | Discovered new exit (range 15) 1496 | -10/Mines | Met a Derelict bent on vengeance 1545 | -10/Mines | Learned location of 1 exit from Materials 1793 | -10/Mines | Learned location of Zion (-6) 1850 | -10/Mines | Received a Rocket Launcher from a helpful Derelict 1897 | -10/Mines | Discovered new exit (range 8) 2589 | -10/Mines | Discovered new exit (range 11) 2605 | -10/Mines | Entered Subcaves 2606 | -10/Subcaves | Approached by a straggling Scientist 3184 | -10/Subcaves | Discovered new exit (range 11) 3365 | -10/Subcaves | Shifting Twisted Machinery released Sub. Monowheel 3416 | -10/Subcaves | Discovered new exit (range 16) 3694 | -10/Subcaves | Core integrity fell below 50% 3750 | -10/Subcaves | Lost 3 parts (2n1w) 3985 | -10/Subcaves | Build established: Scavenger-Mutant 4059 | -10/Subcaves | Ambushed by Subdweller buried in earth 4062 | -10/Subcaves | Ambushed by Subdweller buried in earth 4076 | -10/Subcaves | Core integrity fell below 20% 4114 | -10/Subcaves | Lost 3 parts (1p2w) 4243 | -10/Subcaves | Entered Recycling 4464 | -7/Recycling | Scanned before Scraplab entrance 4479 | -7/Recycling | Entered Scraplab 4487 | -7/Recycling | Discovered new exit (range 3) 4489 | -7/Recycling | Entered Scraptown 4489 | -7/Scraptown | System corruption cleaned by C-Scrubber 4741 | -7/Scraptown | Scanned Subdweller tech in exchange for log data 4752 | -7/Scraptown | Learned Research emergency access door positions 4770 | -7/Scraptown | Discovered new exit (range 11) 5040 | -7/Scraptown | Visited UFD Registry 5040 | -7/Scraptown | Registered with UFD as "Autoflow" 5068 | -7/Scraptown | Visited Bundlers 5154 | -7/Scraptown | Visited Cyclists 5163 | -7/Scraptown | Build established: Mutant 5278 | -7/Scraptown | Guru changed UFD alias to "Spiketorch" 5346 | -7/Scraptown | Visited The Evicted 5377 | -7/Scraptown | Visited Botcube Research 5381 | -7/Scraptown | Found Botcube 5472 | -7/Scraptown | Visited Abandonware Association 5484 | -7/Scraptown | Learned abandonware demo "POISON.EXE" 5484 | -7/Scraptown | Learned abandonware demo "REBOOT5.EXE" 5506 | -7/Scraptown | Visited Research Penetration Think Tank 5526 | -7/Scraptown | Visited Scrap Suit Storage 5531 | -7/Scraptown | Found Scrap Suit 5548 | -7/Scraptown | Visited Modified Component R&D 5636 | -7/Scraptown | Visited DA-N13 Charitable Foundation 5640 | -7/Scraptown | Found DCF Scrap (29 items) 5678 | -7/Scraptown | Visited Scrapoid Research Area 5982 | -7/Scraptown | Visited Supply Room 6013 | -7/Scraptown | Botcube activated 6342 | -7/Scraptown | Found Scrap Suit 6511 | -7/Scraptown | Discovered new exit (range 3) 6629 | -7/Scraptown | Met Optimus 6629 | -7/Scraptown | Accepted into 0bPrime 6698 | -7/Scraptown | Entered Factory 6698 | -5/Factory | Accompanied by 1 ally 6698 | -5/Factory | Evolved 10 slots: Propulsion x3, Utility x5, Weapon x2 6740 | -5/Factory | Loaded intel: 8 recycling unit locations 6846 | -5/Factory | Learned location of Protoforge (-2) 7255 | -5/Factory | Build established: Scavenger-Gunner 7368 | -5/Factory | Scrapoid reinforcements arrived 7432 | -5/Factory | Found Scrap Suit 7506 | -5/Factory | Discovered new exit (range 10) 7512 | -5/Factory | Identified exit to Factory 7598 | -5/Factory | First assault squad dispatched 7611 | -5/Factory | Discovered exit to Factory (range 15) 7717 | -5/Factory | Destroyed 9 combat bots 7719 | -5/Factory | Discovered new exit (range 12) 7786 | -5/Factory | Spotted B-75 Beast 7880 | -5/Factory | Identified exit to Upper Caves 8005 | -5/Factory | Found Botcube 8164 | -5/Factory | Build established: Hacker-Gunner 8194 | -5/Factory | High security lockdown imminent 8232 | -5/Factory | Sucked down chute 8232 | -5/Factory | Entered Waste 8245 | -5/Waste | Spotted C-40 Crusher 8247 | -5/Waste | EMP discharged 8247 | -5/Waste | System corruption reached 10% 8247 | -5/Waste | Spotted C-40 Crusher 8265 | -5/Waste | Destroyed C-40 Crusher 8274 | -5/Waste | Spotted C-40 Crusher 8281 | -5/Waste | Destroyed C-40 Crusher 8312 | -5/Waste | Spotted C-40 Crusher 8327 | -5/Waste | Destroyed C-40 Crusher 8341 | -5/Waste | Destroyed C-40 Crusher 8347 | -5/Waste | EMP discharged 8358 | -5/Waste | Spotted C-40 Crusher 8363 | -5/Waste | Spotted C-40 Crusher 8381 | -5/Waste | Destroyed C-40 Crusher 8392 | -5/Waste | Destroyed C-40 Crusher 8420 | -5/Waste | Discovered new exit (range 37) 8447 | -5/Waste | EMP discharged 8540 | -5/Waste | Entered Factory 8569 | -5/Factory | Loaded intel: 8 recycling unit locations 8660 | -5/Factory | Repaired Broken Antigrav System 8707 | -5/Factory | Garrison activated, responded to threat 8840 | -5/Factory | First assault squad dispatched 9051 | -5/Factory | Garrison activated, responded to threat 9100 | -5/Factory | High security lockdown imminent 9131 | -5/Factory | Scrapoid reinforcements arrived 9147 | -5/Factory | Cargo convoy interrupted 9161 | -5/Factory | Botcube activated 9164 | -5/Factory | System corruption reached 30% 9171 | -5/Factory | Core integrity fell below 50% 9180 | -5/Factory | High security lockdown engaged 9187 | -5/Factory | Lost 5 allies 9202 | -5/Factory | Lost 7 parts (1p2n1u3w) 9230 | -5/Factory | Core integrity fell below 20% 9238 | -5/Factory | Destroyed by P-70 Sage via exploding Nuclear Reactor Last Messages --------------- 09209_ Slug penetrates P-70 Sage. 09211_ Ovr. Railgun suddenly begins malfunctioning. 09212_ Dropped Ovr. Coil Gun. 09213_ Antigrav System destroyed. 09218_ Adv. Hacking Suite destroyed. 09219_ Slug penetrates Wall. 09220_ System corrupted: Matter fused (-9). 09222_ Imp. System Shield destroyed. 09223_ Slug penetrates Wall. 09223_ Penetrated by Slug. 09223_ Slug penetrates Construction Platform. 09225_ Slammed into H-66 Slayer. 09226_ Penetrated by Slug. 09226_ Gyrokinetic Inverter destroyed. 09227_ Slammed into H-66 Slayer. 09229_ Penetrated by Slug. 09230_ Adv. Heat Sink destroyed. 09233_ Slug penetrates Wall. 09236_ System corrupted: Matter fused (-6). 09238_ Nuclear Reactor explodes. Map ----- +----------------------------------------------------+ | ?????????????????????????????????????????????????? | | ?????????????????????????????????????????????????? | | ?????????????????????????????????????????????????? | | ?????????????????????????????????????????????????? | | ?????????????????????????????????????????????????? | | ?????????????????????????????????????????????????? | | ?????????????????????????????????????????????????? | | ?????????????????????????????????????????????????? | | ?????????????????????????????????????????????????? | | ?????????????????????????????????????????????????? | | ?????????????????????????????????????????????????? | | ?????????????????????????????????????????????????? | | ?????????????????????????????????????????????????? | | ?????????????????????####+##??#??????????????????? | | ?????????????????????# ? ??????????????????? | | ?????????????????????# ??????????????????? | | ?????????????????????# ??????????????????? | | ?????????????????????# """ """ ? ??????????????? | | ?????????????????????# """ """ ???????????????? | | ?????????????????????# """ """ ???????????????? | | ??????????????####+### w ????????????????? | | ??????????????# ????????????????? | | ??????????????# ####???????????? | | ??????????????# #???????????? | | ?????########## #???????????? | | ?????# T [ ; p ] @ #???????????? | | ?????# #x ##############???????????????? | | ?????# """" " #????????????????????????????? | | ?????# """" # ###??????????????????????????? | | ?????# """" / """#?????????????????????????? | | ?????# """" # # ???????????????????? | | ?????# """ # # ???????????????????? | | ?????#| """" # #? ???????????????????? | | ?????# # #?? ???????????????????? | | ???############ #??? ???????????????????? | | ???""" # #???? ???????"????????????? | | ???"Y" + +????? ?????? ""???????????? | | ?? " " # #?????? ?? ?? ""???????????? | | ?# # #??????????? ?? ?? #???????? | | ?# ?# #??????????? ?? """ #???????? | | ?# !! ?# #??????????? ##=""" ##??????? | | ?# !!??# #??????????? ]""" #??????? | | ?# !]??# #???#+#?????# ]]=% ######?? | | ?# ! ???# #???# #?????# ??? | | ?? ???# #???# #????## =% ! ""??? | | ?? """""""????# #???# #???## !% !* ""??? | | ???? ????# #?### ##### |== ]=[ ! ""??? | | ????????#?????# #?# ##"" !==[% ?? | | ??????????????# ### = ]]= % #??????? | | ??????????????# = [% ! = #??????? | +----------------------------------------------------+ Best States ------------- Heat Dissipation 71 Energy Generation 21 Energy Capacity 310 Matter Stores 300 Matter Capacity 400 Sight Range 16 Terrain Scan Range 16 Terrain Scan Density 10 Evasion (%) 56 Targeting Accuracy 5 Target Analysis 6 Core Analysis 9 Recoil Reduction 6 Salvage Targeting 4 Offensive Hacking 21 Defensive Hacking 12 Item Schematics ----------------- Ovr. Coil Gun | -5/Factory | Scanalyzed Robot Schematics ------------------ None Fabricated ------------ Nothing Repaired ---------- Antigrav System | 32% | -5/Factory | Broken Alien Tech Used ----------------- None Achievements -------------- None Challenges ------------ None Game ------ Seed GrapheneClaymoresMapper Manual? 0 Play Time 01:29:29 Cumulative 285.7 hours Start 2025.06.10 @ 11:44:14 End 2025.06.10 @ 13:13:16 Sessions 1 Manual Loads 0 Difficulty Rogue Special Mode None Game No. 175 Rogue 175 Adventurer 0 Explorer 0 Win Type - Total 3 Types 1/0/1/1/0/0/0/0/0/0 Lore% 80 Gallery% 68 Achievement% 63 Wizard Run 0 Options --------- Layout 2 ASCII 0 Keyboard 1 Movement Vi Keybinds 0 Fullscreen 1 Font 16/Tamsyn Map View 55x47 Zoom Use 0% Tactical HUD 1 Map Filters NONE Filters NONE Steam 0 RUN: 4bfa0d46-9447-48bc-91bc-740626e79ea0